{"text_format":"1","workbook":"xlsx","n_sheets":1,"sheets":["和室・茶室"],"not_rendered":{"charts":0,"images":0,"macros":1,"external_links":0,"defined_names":0,"comments":0,"pivot_tables":0},"unopened":[],"bounds":{"document_bytes":16777216,"sheet_cells":100000,"rows_first":2000,"rows_last":500,"rows_between":2000,"halvings":0,"cell_chars":16384,"cell_head_chars":4096},"cells_cut":0,"cells_raw":0,"read":"whole","date_system":"1900"}

{"sheet":"和室・茶室","index":0,"n_rows":82,"n_cols":26,"rows_kept":82,"cut":false,"hidden":false,"merged":[[5,8,6,9],[11,8,11,10],[11,14,11,15],[9,1,10,5],[9,6,10,6],[9,8,10,10],[9,11,10,13],[9,14,10,15],[14,1,14,5],[14,8,14,10],[14,14,14,15],[17,0,18,0],[17,8,17,10],[17,14,17,15],[18,8,18,10],[18,14,18,15],[30,1,30,5],[30,8,30,10],[30,14,30,15],[23,1,23,5],[23,8,23,10],[23,14,23,15],[24,1,24,5],[24,8,24,10],[24,14,24,15],[25,14,25,15],[26,1,26,5],[26,8,26,10],[26,14,26,15],[27,13,28,13],[27,14,28,15],[2,0,3,3],[36,1,36,5],[36,8,36,10],[47,13,49,15],[32,1,32,5],[32,8,32,10],[33,8,33,10],[34,1,34,5],[34,8,34,10],[35,1,35,5],[35,8,35,10],[31,1,31,5],[31,8,31,10],[31,14,31,15],[25,1,25,5],[25,8,25,10]]}
["ピアザ淡海　滋賀県立県民交流センター"]
["■付帯設備使用申込書"]
["和室・茶室",null,null,null,null,null,null,null,"指定管理者",null,null,null,null,null,null," 株式会社 コンベンションリンケージ　"]
[null,null,null,null,"年","月","日","曜日",null,null,null,null,"h:mm",null,"h:mm","←記入例"]
[null,null,"利用日",null,null,null,null,null,null,null,"本番時間",null,null,"～"]
["備考",null,null,null,null,null,null,null,"使用区分",null,null,null,"午前　午後　夜間"]
[null,null,null,null,null,null,null,null,null,null,null,null,null,null,null,null,null,false,false,false,{"$f":"SUM(R7:T7)","v":0},false,false,false]
[]
["●電気使用料が発生した場合のみ"]
[null,"品　　　　　　名",null,null,null,null,"単位","1区分","数　量",null,null,"区　分",null,null,"金　額"]
[null,null,null,null,null,null,null,"使用料",null,null,null,null,null,null,null,null,null,null,null,null,"計"]
[null,null,null,null,null,null,null,null,null,null,null,"A","P","N",{"$f":"IF(I12=\"\",\"\",H12*I12*U12)","v":""},null,null,{"$f":"IF(V12,1)","v":false},{"$f":"IF(W12,1)","v":false},{"$f":"IF(X12,1)","v":false},{"$f":"SUM(R12:T12)","v":0},false,false,false,null,{"$f":"\"コンセント\"&$I$12","v":"コンセント"}]
[]
["●マイク",null,null,null,null,null,null,null,null,null,null,null,null,null,null,null,null,null,null,null,"計"]
["基本","ポータブルアンプ＆ワイヤレス\nハンドマイク２本",null,null,null,null,"１セット",450,null,null,null,"A","P","N",{"$f":"IF(I15=\"\",\"\",H15*I15*U15)","v":""},null,null,{"$f":"IF(V15,1)","v":false},{"$f":"IF(W15,1)","v":false},false,{"$f":"SUM(R15:T15)","v":0},false,false,false,null,{"$f":"\"アンプ\"&$I$15","v":"アンプ"}]
[]
["ポータブルアンプには更に1本の有線マイクが追加できます。"]
["追加","卓上マイク",null,null,null,null,"１本",330,null,null,null,"A","P","N",{"$f":"IF(I18=\"\",\"\",H18*I18*U18)","v":""},null,null,{"$f":"IF(V18,1)","v":false},false,false,{"$f":"SUM(R18:T18)","v":0},false,false,false,null,{"$f":"\"卓上\"&$I$18","v":"卓上"}]
[null,"ダイナミックマイク",null,null,null,null,"1本",330,null,null,null,"A","P","N",{"$f":"IF(I19=\"\",\"\",H19*I19*U19)","v":""},null,null,false,false,false,{"$f":"SUM(R19:T19)","v":0},false,false,false,null,{"$f":"\"ダイナ\"&$I$19","v":"ダイナ"}]
["マイクの使用は、最大3本までとなります。マイクスタンド（長・短）が必要な場合は、お申し付け下さい。"]
[]
[]
["●スライド、カセット、ビデオ、DVDなどの音響・映像機器"]
["追加","プロジェクター＋簡易スクリーン",null,null,null,null,"１セット",560,null,null,null,"A","P","N",{"$f":"IF(I24=\"\",\"\",H24*I24*U24)","v":""},null,null,{"$f":"IF(V24,1)","v":false},false,false,{"$f":"SUM(R24:T24)","v":0},false,false,false,null,{"$f":"\"VP,SC\"&$I$24","v":"VP,SC"}]
["追加","書画カメラ",null,null,null,null,"１台",220,null,null,null,"A","P","N","",null,null,false,false,false,0,false,false,false,null,{"$f":"\"書画\"&$I$25","v":"書画"}]
["追加","簡易スクリーンのみ",null,null,null,null,"１台",120,null,null,null,"A","P","N","",null,null,false,false,false,0,false,false,false,null,{"$f":"\"OHP\"&$I$26","v":"OHP"}]
[null,null,null,null,null,null,null,null,null,null,null,"A","P","N","",null,null,false,false,false,0,false,false,false,null,{"$f":"\"SC\"&$I$27","v":"SC"}]
[null,null,null,null,null,null,null,null,null,null,null,null,null,"合計",{"$f":"SUM(O12:P27)","v":0}]
[]
["●その他 無料貸し出し品"]
["追加","卓上マイクスタンド",null,null,null,null,"本","無料",null,null,null,null,"備考",null,null,null,null,null,null,null,null,null,null,null,null,{"$f":"\"スタンド短\"&$I$31","v":"スタンド短"}]
["追加","マイクスタンド",null,null,null,null,"本","無料",null,null,null,null,null,null,null,null,null,null,null,null,null,null,null,null,null,{"$f":"\"スタンド長\"&$I$32","v":"スタンド長"}]
["追加","延長コード（テーブルタップ）",null,null,null,null,"本","無料",null,null,null,null,null,null,null,null,null,null,null,null,null,null,null,null,null,{"$f":"\"延コ\"&$I$33","v":"延コ"}]
["追加","HDMIケーブル",null,null,null,null,"本","無料",null,null,null,null,null,null,null,null,null,null,null,null,null,null,null,null,null,{"$f":"\"VP台\"&$I$34","v":"VP台"}]
["追加","指し棒",null,null,null,null,"本","無料",null,null,null,null,null,null,null,null,null,null,null,null,null,null,null,null,null,{"$f":"\"HDMI\"&$I$35","v":"HDMI"}]
["追加","マグネット（丸）",null,null,null,null,"個","無料",null,null,null,null,null,null,null,null,null,null,null,null,null,null,null,null,null,{"$f":"\"指棒\"&$I$36","v":"指棒"}]
["追加","マグネット（棒）",null,null,null,null,"本","無料",null,null,null,null,null,null,null,null,null,null,null,null,null,null,null,null,null,{"$f":"\"丸マグ\"&$I$37","v":"丸マグ"}]
["※付帯設備の利用料については、上記の表に基づいてお支払い下さい。",null,null,null,null,null,null,null,null,null,null,null,null,null,null,null,null,null,null,null,null,null,null,null,null,{"$f":"\"棒マグ\"&$I$38","v":"棒マグ"}]
["　 尚、事前のお支払いでも当日追加変更が、あった場合追加分の追加分の料金が必要となります。"]
["※パソコンとプロジェクターの接続は、ミニD-sub15ピン及びHDMIで可能です。"]
["　 またパソコンの貸し出しは行っておりません。"]
["※本申込書にて付帯設備を手配しますので、1部屋1枚で作成お願いします。"]
["　 また2日間以上の継続ご利用でも1日毎に作成ください。"]
["※各部屋で使用できる電気容量には上限がございますので、消費電力量の"]
["　 大きい機器類をお持ち込の際には、必ず事前にお申し出ください。"]
[]
[]
[null,null,null,null,null,null,null,null,null,null,null,null,null,"受　付"]
[]
[]
[null,null,null,null,null,null,null,null,null,null,null,null,null,null,null,null,null,null,"曜日","年","月","日"]
[null,null,null,null,null,null,null,null,null,null,null,null,null,null,null,null,null,null,"（月）",2019,1,1]
[null,null,null,null,null,null,null,null,null,null,null,null,null,null,null,null,null,null,"（火）",2020,2,2]
[null,null,null,null,null,null,null,null,null,null,null,null,null,null,null,null,null,null,"（水）",2021,3,3]
[null,null,null,null,null,null,null,null,null,null,null,null,null,null,null,null,null,null,"（木）",2022,4,4]
[null,null,null,null,null,null,null,null,null,null,null,null,null,null,null,null,null,null,"（金）",2023,5,5]
[null,null,null,null,null,null,null,null,null,null,null,null,null,null,null,null,null,null,"（土）",2024,6,6]
[null,null,null,null,null,null,null,null,null,null,null,null,null,null,null,null,null,null,"（日）",2025,7,7]
[null,null,null,null,null,null,null,null,null,null,null,null,null,null,null,null,null,null,null,null,8,8]
[null,null,null,null,null,null,null,null,null,null,null,null,null,null,null,null,null,null,null,null,9,9]
[null,null,null,null,null,null,null,null,null,null,null,null,null,null,null,null,null,null,null,null,10,10]
[null,null,null,null,null,null,null,null,null,null,null,null,null,null,null,null,null,null,null,null,11,11]
[null,null,null,null,null,null,null,null,null,null,null,null,null,null,null,null,null,null,null,null,12,12]
[null,null,null,null,null,null,null,null,null,null,null,null,null,null,null,null,null,null,null,null,null,13]
[null,null,null,null,null,null,null,null,null,null,null,null,null,null,null,null,null,null,null,null,null,14]
[null,null,null,null,null,null,null,null,null,null,null,null,null,null,null,null,null,null,null,null,null,15]
[null,null,null,null,null,null,null,null,null,null,null,null,null,null,null,null,null,null,null,null,null,16]
[null,null,null,null,null,null,null,null,null,null,null,null,null,null,null,null,null,null,null,null,null,17]
[null,null,null,null,null,null,null,null,null,null,null,null,null,null,null,null,null,null,null,null,null,18]
[null,null,null,null,null,null,null,null,null,null,null,null,null,null,null,null,null,null,null,null,null,19]
[null,null,null,null,null,null,null,null,null,null,null,null,null,null,null,null,null,null,null,null,null,20]
[null,null,null,null,null,null,null,null,null,null,null,null,null,null,null,null,null,null,null,null,null,21]
[null,null,null,null,null,null,null,null,null,null,null,null,null,null,null,null,null,null,null,null,null,22]
[null,null,null,null,null,null,null,null,null,null,null,null,null,null,null,null,null,null,null,null,null,23]
[null,null,null,null,null,null,null,null,null,null,null,null,null,null,null,null,null,null,null,null,null,24]
[null,null,null,null,null,null,null,null,null,null,null,null,null,null,null,null,null,null,null,null,null,25]
[null,null,null,null,null,null,null,null,null,null,null,null,null,null,null,null,null,null,null,null,null,26]
[null,null,null,null,null,null,null,null,null,null,null,null,null,null,null,null,null,null,null,null,null,27]
[null,null,null,null,null,null,null,null,null,null,null,null,null,null,null,null,null,null,null,null,null,28]
[null,null,null,null,null,null,null,null,null,null,null,null,null,null,null,null,null,null,null,null,null,29]
[null,null,null,null,null,null,null,null,null,null,null,null,null,null,null,null,null,null,null,null,null,30]
[null,null,null,null,null,null,null,null,null,null,null,null,null,null,null,null,null,null,null,null,null,31]